[Event "Titled Tuesday Blitz April 26 Early 2022"]
[White "Olsen, Filip Boe"]
[Black "Shirov, Alexei"]
[WhiteFideId "1440640"]
[BlackFideId "2209390"]
[WhiteElo "2188"]
[BlackElo "2678"]
[Result "0-1"]
[Round "02"]
[TimeControl "180+1"]
[Date "2022.04.26"]
[WhiteClock "0:00:02"]
[BlackClock "0:00:58"]

1. d4 {[%clk 0:03:00]}  d5 {[%clk 0:02:59]} 2. Nf3 {[%clk 0:02:59]}  Nf6 {[%clk 0:02:59]} 3. Bf4 {[%clk 0:02:58]}  c5 {[%clk 0:02:58]} 4. e3 {[%clk 0:02:58]}  Nc6 {[%clk 0:02:58]} 5. Nbd2 {[%clk 0:02:57]}  Qb6 {[%clk 0:02:57]} 6. dxc5 {[%clk 0:02:57]}  Qxb2 {[%clk 0:02:56]} 7. Rb1 {[%clk 0:02:57]}  Qc3 {[%clk 0:02:56]} 8. Bb5 {[%clk 0:02:57]}  e6 {[%clk 0:02:54]} 9. O-O {[%clk 0:02:53]}  Be7 {[%clk 0:02:52]} 10. e4 {[%clk 0:02:47]}  O-O {[%clk 0:02:49]} 11. e5 {[%clk 0:02:47]}  Nd7 {[%clk 0:02:47]} 12. Nb3 {[%clk 0:02:47]}  Qb4 {[%clk 0:02:18]} 13. Nfd4 {[%clk 0:02:25]}  Nxd4 {[%clk 0:02:15]} 14. Nxd4 {[%clk 0:02:24]}  Qxc5 {[%clk 0:02:15]} 15. Rb3 {[%clk 0:02:17]}  a6 {[%clk 0:02:09]} 16. Bd3 {[%clk 0:02:17]}  g6 {[%clk 0:02:07]} 17. Nf3 {[%clk 0:01:58]}  Qc7 {[%clk 0:01:59]} 18. Re1 {[%clk 0:01:34]}  Nc5 {[%clk 0:01:57]} 19. Ng5 {[%clk 0:01:28]}  Nxb3 {[%clk 0:01:51]} 20. axb3 {[%clk 0:01:23]}  h6 {[%clk 0:01:35]} 21. Nh7 {[%clk 0:00:44]}  Kxh7 {[%clk 0:01:29]} 22. Qh5 {[%clk 0:00:44]}  Rh8 {[%clk 0:01:22]} 23. Bxg6+ {[%clk 0:00:18]}  Kg7 {[%clk 0:01:21]} 24. Bd3 {[%clk 0:00:18]}  Bg5 {[%clk 0:01:16]} 25. Bxg5 {[%clk 0:00:12]}  hxg5 {[%clk 0:01:15]} 26. Qxg5+ {[%clk 0:00:13]}  Kf8 {[%clk 0:01:14]} 27. Re3 {[%clk 0:00:13]}  Qe7 {[%clk 0:01:11]} 28. Qf4 {[%clk 0:00:05]}  Qh4 {[%clk 0:01:11]} 29. g4 {[%clk 0:00:05]}  Bd7 {[%clk 0:01:10]} 30. Rf3 {[%clk 0:00:05]}  Be8 {[%clk 0:01:10]} 31. h3 {[%clk 0:00:05]}  a5 {[%clk 0:01:02]} 32. Bg6 {[%clk 0:00:05]}  Qh6 {[%clk 0:00:59]} 33. Qf6 {[%clk 0:00:02]}  Qg7 {[%clk 0:00:58]} 0-1


[Site "https://www.chess.com"]

[Event "Titled Tuesday Blitz April 26 Early 2022"]
[White "Onslow, Alfie"]
[Black "Mortazavi, Ali"]
[WhiteFideId "436976"]
[BlackFideId "401323"]
[WhiteElo "1884"]
[BlackElo "2339"]
[Result "0-1"]
[Round "02"]
[TimeControl "180+1"]
[Date "2022.04.26"]
[WhiteClock "0:00:03"]
[BlackClock "0:00:34"]

1. e4 {[%clk 0:02:58]}  c6 {[%clk 0:02:59]} 2. d4 {[%clk 0:02:57]}  d5 {[%clk 0:03:00]} 3. exd5 {[%clk 0:02:58]}  cxd5 {[%clk 0:03:00]} 4. Nf3 {[%clk 0:02:58]}  Nc6 {[%clk 0:02:59]} 5. Bb5 {[%clk 0:02:58]}  Bg4 {[%clk 0:02:59]} 6. h3 {[%clk 0:02:53]}  Bxf3 {[%clk 0:02:58]} 7. Qxf3 {[%clk 0:02:51]}  e6 {[%clk 0:02:58]} 8. c3 {[%clk 0:02:49]}  Bd6 {[%clk 0:02:56]} 9. O-O {[%clk 0:02:47]}  Ne7 {[%clk 0:02:56]} 10. Re1 {[%clk 0:02:39]}  Qc7 {[%clk 0:02:51]} 11. Nd2 {[%clk 0:02:36]}  a6 {[%clk 0:02:38]} 12. Bd3 {[%clk 0:02:34]}  Ng6 {[%clk 0:02:30]} 13. Nf1 {[%clk 0:02:12]}  Nce7 {[%clk 0:02:24]} 14. Ng3 {[%clk 0:02:09]}  Nf4 {[%clk 0:02:11]} 15. Bxf4 {[%clk 0:02:00]}  Bxf4 {[%clk 0:02:11]} 16. Nh5 {[%clk 0:02:01]}  Bh6 {[%clk 0:02:11]} 17. Nf6+ {[%clk 0:01:47]}  gxf6 {[%clk 0:02:05]} 18. Qxf6 {[%clk 0:01:48]}  O-O-O {[%clk 0:02:04]} 19. Qxh6 {[%clk 0:01:46]}  Ng6 {[%clk 0:02:02]} 20. Bxg6 {[%clk 0:01:37]}  hxg6 {[%clk 0:02:02]} 21. Qe3 {[%clk 0:01:38]}  Rh5 {[%clk 0:01:58]} 22. b3 {[%clk 0:01:13]}  Rdh8 {[%clk 0:01:51]} 23. c4 {[%clk 0:01:05]}  dxc4 {[%clk 0:01:51]} 24. bxc4 {[%clk 0:01:06]}  g5 {[%clk 0:01:48]} 25. Qg3 {[%clk 0:00:50]}  Rh4 {[%clk 0:01:34]} 26. Qxg5 {[%clk 0:00:11]}  Rxd4 {[%clk 0:01:29]} 27. c5 {[%clk 0:00:10]}  Rdd8 {[%clk 0:01:12]} 28. Rac1 {[%clk 0:00:09]}  Qc6 {[%clk 0:01:12]} 29. Qe3 {[%clk 0:00:05]}  Rhg8 {[%clk 0:01:11]} 30. Qe4 {[%clk 0:00:05]}  Rd2 {[%clk 0:00:47]} 31. Qxc6+ {[%clk 0:00:04]}  bxc6 {[%clk 0:00:48]} 32. a4 {[%clk 0:00:04]}  Rg5 {[%clk 0:00:43]} 33. Re4 {[%clk 0:00:03]}  Rf5 {[%clk 0:00:41]} 34. f3 {[%clk 0:00:03]}  Rfd5 {[%clk 0:00:38]} 35. Rf4 {[%clk 0:00:03]}  f5 {[%clk 0:00:37]} 36. h4 {[%clk 0:00:03]}  Ra2 {[%clk 0:00:36]} 37. Rb4 {[%clk 0:00:02]}  Rdd2 {[%clk 0:00:35]} 38. Rb5 {[%clk 0:00:03]}  axb5 {[%clk 0:00:34]} 0-1


[Site "https://www.chess.com"]

[Event "Titled Tuesday Blitz April 26 Early 2022"]
[White "Padmini, Rout"]
[Black "Sawyer, Bradley"]
[WhiteFideId "5029295"]
[BlackFideId "2023784"]
[WhiteElo "2181"]
[BlackElo "2368"]
[Result "1-0"]
[Round "02"]
[TimeControl "180+1"]
[Date "2022.04.26"]
[WhiteClock "0:00:54"]
[BlackClock "0:00:17"]

1. c4 {[%clk 0:02:57]}  c5 {[%clk 0:02:58]} 2. b3 {[%clk 0:02:57]}  Nc6 {[%clk 0:02:53]} 3. Bb2 {[%clk 0:02:57]}  e5 {[%clk 0:02:53]} 4. Nc3 {[%clk 0:02:52]}  g6 {[%clk 0:02:53]} 5. g3 {[%clk 0:02:46]}  Bg7 {[%clk 0:02:52]} 6. Bg2 {[%clk 0:02:45]}  Nge7 {[%clk 0:02:51]} 7. e3 {[%clk 0:02:40]}  O-O {[%clk 0:02:49]} 8. h4 {[%clk 0:02:40]}  h5 {[%clk 0:02:45]} 9. Nf3 {[%clk 0:02:39]}  d5 {[%clk 0:02:39]} 10. cxd5 {[%clk 0:02:38]}  Nxd5 {[%clk 0:02:40]} 11. Ng5 {[%clk 0:02:29]}  Ndb4 {[%clk 0:02:35]} 12. O-O {[%clk 0:02:23]}  Nd3 {[%clk 0:02:24]} 13. Ba3 {[%clk 0:02:22]}  Ncb4 {[%clk 0:02:21]} 14. Bxb4 {[%clk 0:02:01]}  Nxb4 {[%clk 0:02:13]} 15. a3 {[%clk 0:02:01]}  Nd3 {[%clk 0:02:11]} 16. Qe2 {[%clk 0:01:58]}  Bg4 {[%clk 0:02:10]} 17. f3 {[%clk 0:01:56]}  Bf5 {[%clk 0:01:49]} 18. e4 {[%clk 0:01:55]}  Qd4+ {[%clk 0:01:42]} 19. Kh2 {[%clk 0:01:49]}  Bd7 {[%clk 0:01:42]} 20. f4 {[%clk 0:01:41]}  exf4 {[%clk 0:01:38]} 21. gxf4 {[%clk 0:01:40]}  Bg4 {[%clk 0:01:34]} 22. Nf3 {[%clk 0:01:36]}  Qd6 {[%clk 0:01:14]} 23. e5 {[%clk 0:01:35]}  Qd7 {[%clk 0:01:13]} 24. Qe4 {[%clk 0:01:31]}  Rad8 {[%clk 0:01:01]} 25. Ng5 {[%clk 0:01:24]}  b6 {[%clk 0:00:58]} 26. Nd5 {[%clk 0:01:23]}  Bf5 {[%clk 0:00:56]} 27. Qe3 {[%clk 0:01:22]}  Rfe8 {[%clk 0:00:44]} 28. Qg3 {[%clk 0:01:16]}  Nxe5 {[%clk 0:00:38]} 29. fxe5 {[%clk 0:01:15]}  Bxe5 {[%clk 0:00:39]} 30. Rf4 {[%clk 0:01:02]}  Bxa1 {[%clk 0:00:34]} 31. d4 {[%clk 0:00:59]}  Bxd4 {[%clk 0:00:34]} 32. Rxd4 {[%clk 0:00:59]}  Qc6 {[%clk 0:00:17]} 33. Ne7+ {[%clk 0:00:54]} 1-0


[Site "https://www.chess.com"]

[Event "Titled Tuesday Blitz April 26 Early 2022"]
[White "Papasimakopoulos, Alexandros"]
[Black "Chuemsakul, Sarocha"]
[WhiteFideId "4244125"]
[BlackFideId "6203710"]
[WhiteElo "2340"]
[BlackElo "1703"]
[Result "1-0"]
[Round "02"]
[TimeControl "180+1"]
[Date "2022.04.26"]
[WhiteClock "0:00:16"]
[BlackClock "0:00:12"]

1. d4 {[%clk 0:02:44]}  Nf6 {[%clk 0:02:59]} 2. c4 {[%clk 0:02:43]}  g6 {[%clk 0:02:58]} 3. Nc3 {[%clk 0:02:43]}  Bg7 {[%clk 0:02:58]} 4. e4 {[%clk 0:02:42]}  d6 {[%clk 0:02:59]} 5. f3 {[%clk 0:02:42]}  O-O {[%clk 0:02:56]} 6. Nge2 {[%clk 0:02:42]}  e5 {[%clk 0:02:51]} 7. Be3 {[%clk 0:02:38]}  Nc6 {[%clk 0:02:31]} 8. d5 {[%clk 0:02:38]}  Ne7 {[%clk 0:02:32]} 9. g4 {[%clk 0:02:36]}  Nd7 {[%clk 0:02:29]} 10. Qd2 {[%clk 0:02:33]}  f5 {[%clk 0:02:28]} 11. g5 {[%clk 0:02:32]}  a5 {[%clk 0:01:54]} 12. h4 {[%clk 0:02:25]}  Nc5 {[%clk 0:01:39]} 13. O-O-O {[%clk 0:02:20]}  Bd7 {[%clk 0:01:32]} 14. Kb1 {[%clk 0:02:18]}  Nc8 {[%clk 0:01:12]} 15. Nc1 {[%clk 0:02:02]}  a4 {[%clk 0:01:03]} 16. h5 {[%clk 0:02:00]}  f4 {[%clk 0:01:02]} 17. Bxc5 {[%clk 0:01:54]}  dxc5 {[%clk 0:01:03]} 18. h6 {[%clk 0:01:35]}  Bh8 {[%clk 0:00:56]} 19. Rg1 {[%clk 0:01:35]}  Nd6 {[%clk 0:00:56]} 20. Qf2 {[%clk 0:01:21]}  b6 {[%clk 0:00:55]} 21. b3 {[%clk 0:01:18]}  axb3 {[%clk 0:00:52]} 22. axb3 {[%clk 0:01:19]}  Qe7 {[%clk 0:00:46]} 23. Nd3 {[%clk 0:01:14]}  Ra7 {[%clk 0:00:44]} 24. Kb2 {[%clk 0:01:13]}  Rfa8 {[%clk 0:00:44]} 25. Qh2 {[%clk 0:01:10]}  Nf7 {[%clk 0:00:40]} 26. Qg2 {[%clk 0:00:51]}  Nd6 {[%clk 0:00:40]} 27. Rc1 {[%clk 0:00:48]}  Nf7 {[%clk 0:00:29]} 28. Rd1 {[%clk 0:00:44]}  Nd6 {[%clk 0:00:28]} 29. Nc1 {[%clk 0:00:45]}  Nf7 {[%clk 0:00:23]} 30. Re1 {[%clk 0:00:44]}  Nd6 {[%clk 0:00:24]} 31. Qh2 {[%clk 0:00:44]}  Nf7 {[%clk 0:00:22]} 32. Qh4 {[%clk 0:00:44]}  Kf8 {[%clk 0:00:20]} 33. Rd1 {[%clk 0:00:44]}  Nd6 {[%clk 0:00:19]} 34. Bh3 {[%clk 0:00:44]}  Bxh3 {[%clk 0:00:18]} 35. Qxh3 {[%clk 0:00:45]}  Ke8 {[%clk 0:00:18]} 36. Nd3 {[%clk 0:00:39]}  Qd7 {[%clk 0:00:16]} 37. Qe6+ {[%clk 0:00:26]}  Qxe6 {[%clk 0:00:16]} 38. dxe6 {[%clk 0:00:27]}  c6 {[%clk 0:00:16]} 39. Nxc5 {[%clk 0:00:21]}  Nxc4+ {[%clk 0:00:15]} 40. bxc4 {[%clk 0:00:21]}  bxc5 {[%clk 0:00:16]} 41. Rd6 {[%clk 0:00:19]}  Rc7 {[%clk 0:00:15]} 42. Rgd1 {[%clk 0:00:19]}  Ke7 {[%clk 0:00:14]} 43. Rd7+ {[%clk 0:00:19]}  Rxd7 {[%clk 0:00:14]} 44. Rxd7+ {[%clk 0:00:19]}  Kxe6 {[%clk 0:00:15]} 45. Rxh7 {[%clk 0:00:20]}  Bf6 {[%clk 0:00:15]} 46. gxf6 {[%clk 0:00:19]}  Kxf6 {[%clk 0:00:16]} 47. Rc7 {[%clk 0:00:19]}  Rh8 {[%clk 0:00:15]} 48. h7 {[%clk 0:00:20]}  Kg5 {[%clk 0:00:16]} 49. Kc2 {[%clk 0:00:17]}  Kh4 {[%clk 0:00:16]} 50. Kd3 {[%clk 0:00:17]}  g5 {[%clk 0:00:15]} 51. Rg7 {[%clk 0:00:16]}  g4 {[%clk 0:00:12]} 52. Rxg4+ {[%clk 0:00:16]}  Kh3 {[%clk 0:00:12]} 53. Rg7 {[%clk 0:00:16]} 1-0


[Site "https://www.chess.com"]

[Event "Titled Tuesday Blitz April 26 Early 2022"]
[White "Petrova, Irina"]
[Black "Chojnacki, Slawomir"]
[WhiteFideId "14124122"]
[BlackFideId "1117076"]
[WhiteElo "1993"]
[BlackElo "2084"]
[Result "0-1"]
[Round "02"]
[TimeControl "180+1"]
[Date "2022.04.26"]
[WhiteClock "0:00:28"]
[BlackClock "0:01:10"]

1. e4 {[%clk 0:03:00]}  c6 {[%clk 0:03:00]} 2. d4 {[%clk 0:03:00]}  d5 {[%clk 0:03:01]} 3. e5 {[%clk 0:03:01]}  Bf5 {[%clk 0:03:01]} 4. h4 {[%clk 0:03:01]}  h5 {[%clk 0:03:00]} 5. c4 {[%clk 0:03:01]}  e6 {[%clk 0:03:00]} 6. Nc3 {[%clk 0:03:01]}  Nd7 {[%clk 0:03:01]} 7. Bg5 {[%clk 0:02:59]}  Qa5 {[%clk 0:03:00]} 8. cxd5 {[%clk 0:02:57]}  exd5 {[%clk 0:02:52]} 9. Bd3 {[%clk 0:02:57]}  Bg4 {[%clk 0:02:37]} 10. f3 {[%clk 0:02:56]}  Be6 {[%clk 0:02:36]} 11. Ne2 {[%clk 0:02:56]}  Nh6 {[%clk 0:02:34]} 12. O-O {[%clk 0:02:48]}  Be7 {[%clk 0:02:32]} 13. Nf4 {[%clk 0:02:37]}  Bxg5 {[%clk 0:02:26]} 14. hxg5 {[%clk 0:02:38]}  Nf5 {[%clk 0:02:25]} 15. g6 {[%clk 0:02:29]}  Ne3 {[%clk 0:02:12]} 16. gxf7+ {[%clk 0:02:28]}  Kxf7 {[%clk 0:02:12]} 17. Bg6+ {[%clk 0:02:26]}  Ke7 {[%clk 0:02:12]} 18. Qc1 {[%clk 0:01:48]}  Nxf1 {[%clk 0:02:10]} 19. Nxe6 {[%clk 0:01:36]}  Kxe6 {[%clk 0:02:07]} 20. Qg5 {[%clk 0:01:31]}  Ne3 {[%clk 0:02:05]} 21. Qxe3 {[%clk 0:01:26]}  Qd8 {[%clk 0:01:59]} 22. f4 {[%clk 0:01:21]}  Qh4 {[%clk 0:01:53]} 23. f5+ {[%clk 0:01:21]}  Ke7 {[%clk 0:01:53]} 24. f6+ {[%clk 0:01:20]}  gxf6 {[%clk 0:01:49]} 25. exf6+ {[%clk 0:01:21]}  Kxf6 {[%clk 0:01:50]} 26. Bc2 {[%clk 0:01:13]}  Rae8 {[%clk 0:01:43]} 27. Rf1+ {[%clk 0:01:13]}  Kg7 {[%clk 0:01:43]} 28. Qd3 {[%clk 0:01:10]}  Qg5 {[%clk 0:01:37]} 29. Ne2 {[%clk 0:00:56]}  Qe3+ {[%clk 0:01:35]} 30. Qxe3 {[%clk 0:00:55]}  Rxe3 {[%clk 0:01:36]} 31. Nf4 {[%clk 0:00:54]}  Nf6 {[%clk 0:01:31]} 32. Bf5 {[%clk 0:00:46]}  Rhe8 {[%clk 0:01:30]} 33. Rf2 {[%clk 0:00:42]}  Kh6 {[%clk 0:01:20]} 34. Bg6 {[%clk 0:00:40]}  Re1+ {[%clk 0:01:19]} 35. Rf1 {[%clk 0:00:34]}  Rxf1+ {[%clk 0:01:17]} 36. Kxf1 {[%clk 0:00:35]}  Rf8 {[%clk 0:01:17]} 37. g3 {[%clk 0:00:32]}  Ne4 {[%clk 0:01:16]} 38. Kg2 {[%clk 0:00:31]}  Nxg3 {[%clk 0:01:11]} 39. Kxg3 {[%clk 0:00:30]}  Rxf4 {[%clk 0:01:12]} 40. Bxh5 {[%clk 0:00:28]}  Rxd4 {[%clk 0:01:10]} 0-1


[Site "https://www.chess.com"]

[Event "Titled Tuesday Blitz April 26 Early 2022"]
[White "Pham, Le Thao Nguyen"]
[Black "Dwilewicz, Katarzyna"]
[WhiteFideId "12401226"]
[BlackFideId "1148486"]
[WhiteElo "2271"]
[BlackElo "1907"]
[Result "1/2-1/2"]
[Round "02"]
[TimeControl "180+1"]
[Date "2022.04.26"]
[WhiteClock "0:00:28"]
[BlackClock "0:00:48"]

1. d4 {[%clk 0:02:57]}  d5 {[%clk 0:02:58]} 2. c4 {[%clk 0:02:58]}  e6 {[%clk 0:02:58]} 3. Nc3 {[%clk 0:02:57]}  Bb4 {[%clk 0:02:56]} 4. cxd5 {[%clk 0:02:48]}  exd5 {[%clk 0:02:54]} 5. Nf3 {[%clk 0:02:49]}  Nf6 {[%clk 0:02:51]} 6. Bg5 {[%clk 0:02:10]}  O-O {[%clk 0:02:47]} 7. e3 {[%clk 0:02:09]}  h6 {[%clk 0:02:41]} 8. Bxf6 {[%clk 0:02:08]}  Qxf6 {[%clk 0:02:40]} 9. Qb3 {[%clk 0:02:08]}  Bxc3+ {[%clk 0:02:31]} 10. bxc3 {[%clk 0:02:08]}  c6 {[%clk 0:02:27]} 11. Be2 {[%clk 0:02:07]}  Nd7 {[%clk 0:02:22]} 12. O-O {[%clk 0:02:06]}  Nb6 {[%clk 0:02:19]} 13. a4 {[%clk 0:02:06]}  Bg4 {[%clk 0:02:15]} 14. a5 {[%clk 0:02:04]}  Bxf3 {[%clk 0:02:09]} 15. Bxf3 {[%clk 0:01:25]}  Nc4 {[%clk 0:02:08]} 16. Rfd1 {[%clk 0:01:24]}  b5 {[%clk 0:02:01]} 17. Be2 {[%clk 0:01:21]}  a6 {[%clk 0:01:57]} 18. Qb4 {[%clk 0:01:19]}  Rfe8 {[%clk 0:01:56]} 19. Bxc4 {[%clk 0:01:17]}  dxc4 {[%clk 0:01:55]} 20. d5 {[%clk 0:01:17]}  cxd5 {[%clk 0:01:53]} 21. Rxd5 {[%clk 0:01:18]}  Rad8 {[%clk 0:01:51]} 22. Rad1 {[%clk 0:01:16]}  Rxd5 {[%clk 0:01:49]} 23. Rxd5 {[%clk 0:01:17]}  Rd8 {[%clk 0:01:50]} 24. Rxd8+ {[%clk 0:01:12]}  Qxd8 {[%clk 0:01:51]} 25. g3 {[%clk 0:01:07]}  Qd1+ {[%clk 0:01:47]} 26. Kg2 {[%clk 0:01:07]}  Qb3 {[%clk 0:01:47]} 27. Qe7 {[%clk 0:01:03]}  Qxc3 {[%clk 0:01:46]} 28. Qe8+ {[%clk 0:01:03]}  Kh7 {[%clk 0:01:46]} 29. Qxf7 {[%clk 0:01:01]}  Qxa5 {[%clk 0:01:46]} 30. Qf5+ {[%clk 0:01:00]}  Kg8 {[%clk 0:01:46]} 31. Qe6+ {[%clk 0:01:00]}  Kf8 {[%clk 0:01:45]} 32. Qd6+ {[%clk 0:00:57]}  Ke8 {[%clk 0:01:42]} 33. Qe6+ {[%clk 0:00:57]}  Kf8 {[%clk 0:01:35]} 34. Qd6+ {[%clk 0:00:57]}  Ke8 {[%clk 0:01:35]} 35. Qe6+ {[%clk 0:00:57]}  Kd8 {[%clk 0:01:26]} 36. Qg8+ {[%clk 0:00:56]}  Kc7 {[%clk 0:01:25]} 37. Qxg7+ {[%clk 0:00:56]}  Kc8 {[%clk 0:01:24]} 38. Qg4+ {[%clk 0:00:42]}  Kb7 {[%clk 0:01:22]} 39. Qe4+ {[%clk 0:00:40]}  Kc7 {[%clk 0:01:02]} 40. Qe7+ {[%clk 0:00:37]}  Kc8 {[%clk 0:01:00]} 41. Qe6+ {[%clk 0:00:36]}  Kb7 {[%clk 0:00:57]} 42. Qe4+ {[%clk 0:00:29]}  Kb8 {[%clk 0:00:51]} 43. Qe8+ {[%clk 0:00:28]}  Kb7 {[%clk 0:00:48]} 44. Qe4+ {[%clk 0:00:28]} 1/2-1/2


[Site "https://www.chess.com"]

[Event "Titled Tuesday Blitz April 26 Early 2022"]
[White "Pham, Tran Gia Phuc"]
[Black "Lou, Yiping"]
[WhiteFideId "12415669"]
[BlackFideId "8603928"]
[WhiteElo "1789"]
[BlackElo "2412"]
[Result "0-1"]
[Round "02"]
[TimeControl "180+1"]
[Date "2022.04.26"]
[WhiteClock "0:00:08"]
[BlackClock "0:00:08"]

1. e4 {[%clk 0:03:00]}  c5 {[%clk 0:02:57]} 2. Nc3 {[%clk 0:03:00]}  Nc6 {[%clk 0:02:56]} 3. Bb5 {[%clk 0:03:00]}  Nd4 {[%clk 0:02:55]} 4. Nf3 {[%clk 0:03:00]}  e6 {[%clk 0:02:52]} 5. O-O {[%clk 0:02:58]}  Nf6 {[%clk 0:02:49]} 6. e5 {[%clk 0:02:53]}  Nxb5 {[%clk 0:02:36]} 7. Nxb5 {[%clk 0:02:51]}  Nd5 {[%clk 0:02:35]} 8. c4 {[%clk 0:02:51]}  Nc7 {[%clk 0:02:33]} 9. Nd6+ {[%clk 0:02:50]}  Bxd6 {[%clk 0:02:32]} 10. exd6 {[%clk 0:02:50]}  Na6 {[%clk 0:02:32]} 11. d4 {[%clk 0:02:51]}  b6 {[%clk 0:02:22]} 12. d5 {[%clk 0:02:39]}  O-O {[%clk 0:02:20]} 13. dxe6 {[%clk 0:02:38]}  dxe6 {[%clk 0:02:16]} 14. Bf4 {[%clk 0:02:32]}  Bb7 {[%clk 0:02:14]} 15. Bg3 {[%clk 0:02:27]}  f6 {[%clk 0:02:13]} 16. Qa4 {[%clk 0:02:26]}  Nb4 {[%clk 0:02:06]} 17. a3 {[%clk 0:02:24]}  Nc6 {[%clk 0:01:55]} 18. b4 {[%clk 0:02:19]}  e5 {[%clk 0:01:41]} 19. bxc5 {[%clk 0:02:19]}  bxc5 {[%clk 0:01:38]} 20. Rab1 {[%clk 0:02:19]}  Qd7 {[%clk 0:01:29]} 21. Qb5 {[%clk 0:02:18]}  Rab8 {[%clk 0:01:24]} 22. Qxc5 {[%clk 0:02:18]}  Rfc8 {[%clk 0:01:22]} 23. Qd5+ {[%clk 0:02:10]}  Kh8 {[%clk 0:01:22]} 24. Qd2 {[%clk 0:02:01]}  Nd8 {[%clk 0:01:13]} 25. Rfc1 {[%clk 0:01:56]}  Ne6 {[%clk 0:01:05]} 26. Qa5 {[%clk 0:01:33]}  Bxf3 {[%clk 0:00:53]} 27. Rxb8 {[%clk 0:01:28]}  Rxb8 {[%clk 0:00:52]} 28. gxf3 {[%clk 0:01:27]}  Qxd6 {[%clk 0:00:52]} 29. Qxa7 {[%clk 0:01:27]}  Rc8 {[%clk 0:00:48]} 30. Qb7 {[%clk 0:01:23]}  Rb8 {[%clk 0:00:47]} 31. Qa7 {[%clk 0:01:04]}  Rc8 {[%clk 0:00:34]} 32. Kg2 {[%clk 0:00:50]}  h5 {[%clk 0:00:32]} 33. h4 {[%clk 0:00:50]}  Nd4 {[%clk 0:00:30]} 34. Qf7 {[%clk 0:00:49]}  Qxa3 {[%clk 0:00:24]} 35. Qxh5+ {[%clk 0:00:49]}  Kg8 {[%clk 0:00:24]} 36. Rd1 {[%clk 0:00:47]}  Qb3 {[%clk 0:00:22]} 37. Rc1 {[%clk 0:00:40]}  Qb7 {[%clk 0:00:18]} 38. c5 {[%clk 0:00:37]}  Qd5 {[%clk 0:00:17]} 39. Qg4 {[%clk 0:00:25]}  Rxc5 {[%clk 0:00:16]} 40. Rxc5 {[%clk 0:00:24]}  Qxc5 {[%clk 0:00:16]} 41. h5 {[%clk 0:00:24]}  Kf8 {[%clk 0:00:10]} 42. Qe4 {[%clk 0:00:22]}  Qc6 {[%clk 0:00:10]} 43. Qxc6 {[%clk 0:00:22]}  Nxc6 {[%clk 0:00:10]} 44. f4 {[%clk 0:00:22]}  e4 {[%clk 0:00:09]} 45. f5 {[%clk 0:00:21]}  Nd4 {[%clk 0:00:09]} 46. Bd6+ {[%clk 0:00:20]}  Kf7 {[%clk 0:00:08]} 47. Bf4 {[%clk 0:00:18]}  Nxf5 {[%clk 0:00:09]} 48. f3 {[%clk 0:00:18]}  Nh4+ {[%clk 0:00:07]} 49. Kf2 {[%clk 0:00:17]}  Nxf3 {[%clk 0:00:07]} 50. Ke3 {[%clk 0:00:17]}  Ng5 {[%clk 0:00:07]} 51. Bxg5 {[%clk 0:00:08]}  fxg5 {[%clk 0:00:07]} 52. Kxe4 {[%clk 0:00:08]}  Kf6 {[%clk 0:00:07]} 53. Ke3 {[%clk 0:00:08]}  Kf5 {[%clk 0:00:07]} 54. Kf3 {[%clk 0:00:08]}  g4+ {[%clk 0:00:08]} 55. Kg3 {[%clk 0:00:08]}  Kg5 {[%clk 0:00:08]} 0-1


[Site "https://www.chess.com"]

[Event "Titled Tuesday Blitz April 26 Early 2022"]
[White "Piesik, Piotr"]
[Black "Matveeva, Olga"]
[WhiteFideId "1136194"]
[BlackFideId "24107018"]
[WhiteElo "2190"]
[BlackElo "2083"]
[Result "0-1"]
[Round "02"]
[TimeControl "180+1"]
[Date "2022.04.26"]
[WhiteClock "0:02:01"]
[BlackClock "0:00:29"]

1. Nf3 {[%clk 0:03:00]}  Nf6 {[%clk 0:02:57]} 2. g3 {[%clk 0:03:00]}  e6 {[%clk 0:02:56]} 3. Bg2 {[%clk 0:03:01]}  d5 {[%clk 0:02:56]} 4. O-O {[%clk 0:03:01]}  Be7 {[%clk 0:02:56]} 5. d3 {[%clk 0:03:01]}  O-O {[%clk 0:02:57]} 6. Nbd2 {[%clk 0:03:01]}  c5 {[%clk 0:02:57]} 7. e4 {[%clk 0:03:01]}  Nc6 {[%clk 0:02:57]} 8. Qe2 {[%clk 0:02:55]}  b5 {[%clk 0:02:55]} 9. e5 {[%clk 0:02:54]}  Nd7 {[%clk 0:02:54]} 10. c3 {[%clk 0:02:55]}  a5 {[%clk 0:02:53]} 11. Re1 {[%clk 0:02:54]}  b4 {[%clk 0:02:48]} 12. c4 {[%clk 0:02:54]}  Nb6 {[%clk 0:02:45]} 13. b3 {[%clk 0:02:53]}  a4 {[%clk 0:02:43]} 14. Bb2 {[%clk 0:02:53]}  a3 {[%clk 0:02:42]} 15. Bc1 {[%clk 0:02:53]}  Bb7 {[%clk 0:02:33]} 16. h4 {[%clk 0:02:52]}  dxc4 {[%clk 0:02:28]} 17. dxc4 {[%clk 0:02:51]}  Nd4 {[%clk 0:02:25]} 18. Nxd4 {[%clk 0:02:51]}  Bxg2 {[%clk 0:02:24]} 19. Nxe6 {[%clk 0:02:40]}  fxe6 {[%clk 0:02:15]} 20. Kxg2 {[%clk 0:02:40]}  Qd4 {[%clk 0:01:53]} 21. Rb1 {[%clk 0:02:39]}  Rad8 {[%clk 0:01:43]} 22. Nf3 {[%clk 0:02:39]}  Qd3 {[%clk 0:01:41]} 23. Qxd3 {[%clk 0:02:36]}  Rxd3 {[%clk 0:01:41]} 24. Be3 {[%clk 0:02:36]}  Rfd8 {[%clk 0:01:33]} 25. Re2 {[%clk 0:02:32]}  Rd1 {[%clk 0:01:20]} 26. Rxd1 {[%clk 0:02:30]}  Rxd1 {[%clk 0:01:21]} 27. Rd2 {[%clk 0:02:29]}  Rb1 {[%clk 0:01:19]} 28. h5 {[%clk 0:02:24]}  h6 {[%clk 0:00:51]} 29. Nh2 {[%clk 0:02:18]}  Rb2 {[%clk 0:00:45]} 30. f4 {[%clk 0:02:17]}  Nxc4 {[%clk 0:00:37]} 31. bxc4 {[%clk 0:02:15]}  b3 {[%clk 0:00:34]} 32. Kf3 {[%clk 0:02:01]}  bxa2 {[%clk 0:00:29]} 0-1


[Site "https://www.chess.com"]